Cogmind - Beta 13 @@@ ROGUE MODE // 2024.05.24 @ 17:18:29 Player: Some Pennies Result: Destroyed by TN-JY5(z) with Zionite Laser-S Performance ------------- Evolutions (3) 1500 Regions Visited (8) 1600 Robots Destroyed (180) 900 Value Destroyed (4384) 4384 Prototype IDs (26) 520 Alien Tech Used (0) 0 Bonus (1102) 1102 TOTAL SCORE: 10006 Bonus ------- High Alert Combat Kills 767 Follower Combat Kills 35 Met Imprinter 300 Cogmind --------- Core Integrity 0/700 Matter 251/300 Energy 44/100 System Corruption 0% Temperature Warm (190) Movement Flying (26) Location -7/Deep Caves Parts ------- > --- POWER (1) -------- (None) > --- PROPULSION (5) --- Cooled VTOL Module Cooled VTOL Module Cooled VTOL Module Cooled VTOL Module > --- UTILITY (5) ------ Medium Storage Unit Zionite Weapon Casing Hacking Suite Trap Extractor (0/4) > --- WEAPON (2) ------- Improved Datajack > --- INVENTORY (10) --- Light Nuclear Core Transmission Jammer ECM Suite Hacking Suite System Shield Hacking Drone Bay (1/1) Plasma Cannon Plasma Cutter Makeshift Axe Peak State ------------ > --- POWER ------------ Micro Nuclear Core > --- PROPULSION ------- Cooled VTOL Module Cooled VTOL Module Cooled VTOL Module Cooled VTOL Module Cooled VTOL Module > --- UTILITY ---------- Medium Storage Unit Advanced Visual Processing Unit Improved Signal Interpreter Hacking Suite Hacking Drone Bay > --- WEAPON ----------- Improved Datajack Makeshift Axe > --- INVENTORY -------- Light Nuclear Core Transmission Jammer ECM Suite Hacking Suite System Shield Trap Extractor Plasma Cannon Plasma Cutter Fire Trap Fire Trap [Rating: 57] Favorites ----------- Power Heavy Ion Engine Engine Heavy Ion Engine Power Core Micro Nuclear Core Propulsion Light Treads Treads Light Treads Leg Improved Aluminum Leg Wheel Compact Wheel Flight Unit Cooled VTOL Module Utility Hacking Suite Device Seismic Detector Storage Cargo Storage Unit Processor Advanced Visual Processing Unit Hackware Hacking Suite Protection Medium Armor Plating Weapon Advanced Beam Cannon Energy Gun Improved Medium Laser Energy Cannon Advanced Beam Cannon Ballistic Gun Gauss Rifle Launcher Grenade Launcher Special Weapon Welding Torch Impact Weapon Maul Slashing Weapon Scythe Piercing Weapon CR-A16's Pointy Stick Special Melee Weapon Improved Datajack Build | -11 -10 -9 -8 -7 -7 -7 -7 -7 ------- Run | Yrd Mat Mat Mat Fac Low Low Zio Dee Slots Evolved 6 | . . 2 2 2 . . . . Power . | . . . . . . . . . Propulsion 3 | . . . 2 1 . . . . Utility 3 | . . 2 . 1 . . . . Weapon . | . . . . . . . . . Parts Attached 219 | 8 10 51 49 72 13 8 5 3 Power 15 | 1 . 4 5 5 . . . . Engine 8 | 1 . 4 2 1 . . . . Core 7 | . . . 3 4 . . . . Reactor . | . . . . . . . . . Propulsion 54 | 2 6 15 17 14 . . . . Treads 29 | 1 2 9 17 . . . . . Leg 3 | . 2 1 . . . . . . Wheel 8 | 1 2 5 . . . . . . Hover . | . . . . . . . . . Flight 14 | . . . . 14 . . . . Utility 78 | 3 1 16 9 31 5 7 3 3 Device 42 | 2 . 9 3 19 2 4 2 1 Storage 4 | 1 1 . . 1 . . . 1 Processor 3 | . . . . 3 . . . . Hackware 6 | . . 2 . 4 . . . . Protection 23 | . . 5 6 4 3 3 1 1 Artifact . | . . . . . . . . . Weapon 72 | 2 3 16 18 22 8 1 2 . Energy Gun 3 | . . . 1 2 . . . . Energy Cannon 9 | . 1 6 . 2 . . . . Ballistic Gun 27 | 2 1 6 11 6 1 . . . Ballistic Cannon . | . . . . . . . . . Launcher 11 | . . 3 3 3 2 . . . Special Weapon 1 | . 1 . . . . . . . Impact Weapon 2 | . . 1 1 . . . . . Slashing Weapon 15 | . . . 1 8 5 . 1 . Piercing Weapon 1 | . . . . . . . 1 . Special Melee Weapon 3 | . . . 1 1 . 1 . . Unidentified Prototypes 12 | . . 2 3 4 . . 1 2 Parts Lost 25 | . 3 6 6 3 2 . . 5 Power 5 | . . 1 3 . . . . 1 Propulsion 5 | . 2 1 . 1 . . . 1 Utility 11 | . . 4 1 2 1 . . 3 Weapon 4 | . 1 . 2 . 1 . . . Highest Loss Streak 5 | . 2 2 2 1 1 . . 5 To Critical Strikes . | . . . . . . . . . Average Slot Usage (%) 89 | . 83 85 89 95 93 100 99 90 Engine 7 | . 14 9 7 . . . . . Core 2 | . . . 1 6 7 7 7 5 Treads 14 | . 9 15 35 . . . . . Wheel 3 | . 12 5 . . . . . . Flight 10 | . . . . 36 38 38 38 35 Device 4 | . 1 7 1 7 2 1 6 . Storage 9 | . 13 11 9 7 7 7 7 7 Processor 3 | . . . . 11 15 15 15 12 Hackware 6 | . . 7 9 9 7 7 7 7 Protection 4 | . . 6 7 . 4 6 . 5 Energy Cannon 5 | . 7 13 . . . . . . Ballistic Gun 10 | . 20 6 17 5 2 . . . Slashing Weapon 1 | . . . . 5 5 7 6 5 Naked Turns . | . . . . . . . . . Heaviest Build 170 | 12 148 170 161 159 28 23 23 23 Greatest Support 80 | 16 40 40 80 33 35 25 25 35 Greatest Overweight (x) 15 | . 9 15 2 6 7 . . . Average Overweight (x) 1 | . 7 5 1 . . . . . Largest Inventory Capacity 30 | 8 30 30 30 30 10 10 10 10 Average Capacity 23 | 6 29 30 30 10 10 10 10 10 Most Carried 30 | 5 28 30 30 29 10 10 10 10 Average Carried 21 | 4 19 29 29 9 8 8 10 9 Final Capacity 30 | 5 30 30 30 10 10 10 10 10 Final Carried 30 | 5 24 28 30 10 8 10 10 9 Class Distribution -------------------- 68% | Hauler-Mutant 10% | Sprinter 10% | Scout 6% | Hacker-Sprinter 4% | Mutant Dominant Class ---------------- Hauler-Mutant | -10/Materials Hauler-Mutant | -9/Materials Hauler-Mutant | -8/Materials Scout | -7/Factory Sprinter | -7/Lower Caves Sprinter | -7/Lower Caves Sprinter | -7/Zion Sprinter | -7/Deep Caves Resources | -11 -10 -9 -8 -7 -7 -7 -7 -7 ----------- Run | Yrd Mat Mat Mat Fac Low Low Zio Dee Matter Collected 4380 | 366 339 839 1656 649 358 105 68 . Remotely . | . . . . . . . . . Salvage Created 6801 | 186 576 2650 2536 769 . 84 . . Parts 417 | 15 33 148 166 53 . 2 . . Haulers Intercepted 18 | . 2 5 5 6 . . . . Recyclers Shooed 5 | . . 3 1 1 . . . . Parts Field Recycled . | . . . . . . . . . Retrieved Matter . | . . . . . . . . . Parts Self-Destructed 14 | . . . . . 9 5 . . Prevented . | . . . . . . . . . Kills | -11 -10 -9 -8 -7 -7 -7 -7 -7 ------- Run | Yrd Mat Mat Mat Fac Low Low Zio Dee Combat Hostiles Destroyed 113 | . 11 52 44 5 1 . . . Melee 4 | . . 3 . 1 . . . . Guns 59 | . 10 12 37 . . . . . Cannons 27 | . 1 25 . 1 . . . . AOE 21 | . . 11 7 2 1 . . . Classes Destroyed 15 | 2 5 7 . . . 1 . . Worker 13 | . 1 4 7 1 . . . . Builder 4 | . . 1 1 2 . . . . Tunneler 8 | 5 . . 3 . . . . . Hauler 18 | . 2 5 5 6 . . . . Recycler 11 | 1 . 6 4 . . . . . Minesweeper 1 | . . . . . . 1 . . Mechanic 1 | . . 1 . . . . . . Operator 8 | . 1 2 3 2 . . . . Watcher 13 | . . 2 4 7 . . . . Swarmer 24 | . 3 8 9 3 1 . . . Grunt 63 | . 8 31 22 2 . . . . Brawler 3 | . . 1 2 . . . . . Duelist 3 | . . 2 1 . . . . . Protector 1 | . . 1 . . . . . . Sentry 19 | . . 9 10 . . . . . Best Kill Streak 18 | 2 3 6 18 4 1 1 . . Combat Bots Only 14 | . 3 5 14 3 1 . . . Max Kills in Single Turn 3 | 1 1 3 3 3 1 1 . . Gunslinging 1 | . . . 1 . . . . . Exploded 3 | . . 3 3 2 1 . . . Melee 1 | . . 1 . 1 . . . . Uniques/NPCs Destroyed . | . . . . . . . . . Combat | -11 -10 -9 -8 -7 -7 -7 -7 -7 -------- Run | Yrd Mat Mat Mat Fac Low Low Zio Dee Hostile Shots Fired 734 | . 80 207 219 120 52 4 . 52 Missed 256 | . 18 47 71 73 17 4 . 26 Damage Taken 6933 | . 753 1962 2235 633 565 . . 785 Core 1414 | . 207 358 149 158 133 . . 409 Absorbed by Shields . | . . . . . . . . . Redirected to Shielding 221 | . . . 105 . . . . 116 Ignored by Resistances 24 | . . . 24 . . . . . Regen/Repaired (Parts) 13 | . . 13 . . . . . . Core Remaining (%) 49 | 100 17 10 72 . . . . . Volleys Fired 422 | 25 69 146 152 20 10 . . . Largest 2 | 2 2 2 2 1 2 . . . Hottest 136 | 40 88 136 64 80 64 . . . Shots Fired 781 | 50 129 267 302 21 12 . . . Gun 555 | 50 105 103 288 2 7 . . . Cannon 188 | . 21 153 . 14 . . . . Launcher 35 | . . 11 14 5 5 . . . Special 3 | . 3 . . . . . . . Kinetic 555 | 50 105 103 288 2 7 . . . Thermal 191 | . 24 153 . 14 . . . . Explosive 35 | . . 11 14 5 5 . . . Electromagnetic . | . . . . . . . . . Robot Hit Streak 17 | 6 9 17 11 9 1 . . . Robot Miss Streak 7 | 3 7 4 7 2 5 . . . Penetration Max 1 | . . . 1 . . . . . Secondary Targets 8 | . 1 1 6 . . . . . Max Gunslinging Chain 1 | . 1 1 1 . . . . . Shots Hit Robots 529 | 31 73 172 189 50 3 7 4 . Core Hits 272 | 9 27 91 118 22 3 2 . . Critical Kills 4 | . 1 . 2 1 . . . . Critical Parts Destroyed 4 | . . 3 1 . . . . . Critical Strikes 10 | . 1 3 3 3 . . . . Meltdown 1 | . . . . 1 . . . . Destroy 4 | . 1 . 3 . . . . . Smash 3 | . . 3 . . . . . . Sever 2 | . . . . 2 . . . . Melee Attacks 132 | . . 12 2 105 . 7 6 . Impact 13 | . . 12 1 . . . . . Slashing 110 | . . . . 105 . 4 1 . Piercing . | . . . . . . . . . Sneak Attacks 21 | . . 1 . 12 . 4 4 . Combat Hostiles . | . . . . . . . . . Follow-up Attacks . | . . . . . . . . . Damage Inflicted 13313 | 338 903 4355 4808 2418 285 206 . . Guns 5512 | 338 627 1017 3507 . 23 . . . Cannons 2557 | . 276 1944 . 337 . . . . Explosions 2774 | . . 1010 1287 215 262 . . . Melee 2456 | . . 384 . 1866 . 206 . . Ramming 14 | . . . 14 . . . . . Kinetic 5512 | 338 627 1017 3507 . 23 . . . Thermal 2557 | . 276 1944 . 337 . . . . Explosive 2686 | . . 922 1287 215 262 . . . Electromagnetic 88 | . . 88 . . . . . . Impact 384 | . . 384 . . . . . . Slashing 2072 | . . . . 1866 . 206 . . Piercing . | . . . . . . . . . Highest Corruption 4 | . 4 . . 2 2 2 2 . Average Corruption 2 | . 3 . . 1 2 2 2 . Corruption Purged . | . . . . . . . . . Corruption Blocked . | . . . . . . . . . Effects 39 | . 20 . . 11 6 2 . . Message Errors 8 | . 2 . . 5 1 . . . Matter Fused 16 | . 8 . . 2 4 2 . . Heat Flow Errors 4 | . 2 . . 1 1 . . . Energy Discharges 4 | . 3 . . 1 . . . . Data Loss (minor) 2 | . 2 . . . . . . . Data Loss (major) 2 | . 1 . . 1 . . . . Misfires 3 | . 2 . . 1 . . . . Overload Shots . | . . . . . . . . . Overflow Damage 593 | . . 175 37 327 8 46 . . Projectiles 8 | . . 8 . . . . . . Explosions 60 | . . 8 37 7 8 . . . Melee 525 | . . 159 . 320 . 46 . . Knockbacks 3 | . . 3 . . . . . . Impact 3 | . . 3 . . . . . . Kinetic . | . . . . . . . . . Secondary . | . . . . . . . . . Self-Inflicted Damage 154 | . . 4 59 45 46 . . . Shots 6 | . . 1 2 1 2 . . . Rammed 1 | . . . 1 . . . . . Targets Rammed 1 | . . . 1 . . . . . Kicked . | . . . . . . . . . Crushed . | . . . . . . . . . Highest Temperature 414 | . 259 414 63 356 385 . . 302 Average Temperature 96 | . 64 100 14 127 143 . . 212 Received Heat Transfer 2484 | . 369 819 909 126 18 . . 243 Effects 3 | . . 2 . . 1 . . . Energy Bleed 1 | . . 1 . . . . . . Interference 2 | . . 1 . . 1 . . . Siege Activations . | . . . . . . . . . Robots Corrupted . | . . . . . . . . . Combat Hostiles . | . . . . . . . . . Parts Fried 1 | . . 1 . . . . . . Impact Corruptions 7 | . . 7 . . . . . . Robots Melted 1 | . . . . 1 . . . . Combat Hostiles 1 | . . . . 1 . . . . Parts Melted 6 | . 1 4 . 1 . . . . Heat Transferred 4432 | . 481 3301 . 650 . . . . Parts Sabotaged . | . . . . . . . . . Parts Stolen . | . . . . . . . . . Parts Stripped . | . . . . . . . . . Power Chain Reactions . | . . . . . . . . . Alert | -11 -10 -9 -8 -7 -7 -7 -7 -7 ------- Run | Yrd Mat Mat Mat Fac Low Low Zio Dee Peak Influence 845 | 30 105 845 825 664 . . . . Initial 364 | . 19 . 295 364 . . . . Average 364 | 11 32 485 520 335 . . . . Maximum Alert Level 3 | . . 3 3 2 . . . . Low Security (%) 28 | 100 100 16 . 11 . . . . Level 1 30 | . . 24 29 67 . . . . Level 2 25 | . . 26 51 20 . . . . Level 3 14 | . . 32 18 . . . . . Level 4 . | . . . . . . . . . Level 5 . | . . . . . . . . . High Security . | . . . . . . . . . Max Security . | . . . . . . . . . Sterilizations 1 | . . 1 . . . . . . Squads Dispatched 39 | . 2 11 10 15 . 1 . . Investigation 18 | . 1 6 2 8 . 1 . . Extermination 2 | . . . . 2 . . . . Reinforcement 13 | . 1 3 4 5 . . . . Assault 3 | . . 2 1 . . . . . Garrison 3 | . . . 3 . . . . . Intercept . | . . . . . . . . . Searches Triggered 1 | . . . . 1 . . . . Construction Impeded 3 | . . . 1 2 . . . . Haulers Reinforced 1 | . . . . 1 . . . . Active Scanning Responses . | . . . . . . . . . Cargo Convoy Interrupts . | . . . . . . . . . Stealth | -11 -10 -9 -8 -7 -7 -7 -7 -7 --------- Run | Yrd Mat Mat Mat Fac Low Low Zio Dee Distress Signals 10 | . 1 3 5 1 . . . . Communications Jammed . | . . . . . . . . . Distress Signals . | . . . . . . . . . Times Spotted 263 | . 28 67 70 55 20 11 . 12 Peak Tracking Total 12 | . 3 6 9 6 11 7 . 12 Tactical Retreats 32 | . . 3 3 19 5 2 . . Traps | -11 -10 -9 -8 -7 -7 -7 -7 -7 ------- Run | Yrd Mat Mat Mat Fac Low Low Zio Dee Traps Triggered 5 | . 2 1 . 2 . . . . Indirectly . | . . . . . . . . . Trap Hack Attempts 26 | . . . 26 . . . . . Triggered . | . . . . . . . . . Disarmed . | . . . . . . . . . Reprogrammed 6 | . . . 6 . . . . . Reused . | . . . . . . . . . Traps Extracted 8 | . . . 5 . . 3 . . Installed 7 | . . . . . . 3 . 4 Triggered 1 | . . . . . . 1 . . Most Traps Carried 6 | . . . 4 4 . 6 6 5 Machines | -11 -10 -9 -8 -7 -7 -7 -7 -7 ---------- Run | Yrd Mat Mat Mat Fac Low Low Zio Dee Machines Disabled 13 | . 1 8 3 1 . . . . Max in Single Turn 3 | . 1 3 1 1 . . . . Garrison Access 2 | . . . 1 1 . . . . Machines Repaired . | . . . . . . . . . Machines Dismantled . | . . . . . . . . . Machines Sabotaged . | . . . . . . . . . Overloaded Fab Kills . | . . . . . . . . . Hacking | -11 -10 -9 -8 -7 -7 -7 -7 -7 --------- Run | Yrd Mat Mat Mat Fac Low Low Zio Dee Machines Accessed 49 | . 5 10 6 26 1 1 . . Terminals 34 | . 5 7 4 16 1 1 . . Fabricators 3 | . . . . 3 . . . . Repair Stations 1 | . . 1 . . . . . . Recycling Units 3 | . . 1 . 2 . . . . Scanalyzers 5 | . . 1 1 3 . . . . Garrison Access 3 | . . . 1 2 . . . . Total Hacks 171 | . 23 47 17 76 5 3 . . Successful 97 | . 10 26 11 42 5 3 . . Failed 73 | . 12 21 6 34 . . . . Catastrophic 13 | . . 3 2 8 . . . . Database Lockouts 1 | . 1 . . . . . . . Manual 68 | . 10 19 5 24 . . 10 . Terminals 127 | . 23 35 12 49 5 3 . . Fabricators 8 | . . . . 8 . . . . Repair Stations 2 | . . 2 . . . . . . Recycling Units 7 | . . 2 . 5 . . . . Scanalyzers 22 | . . 8 4 10 . . . . Garrison Access 5 | . . . 1 4 . . . . Terminal Hacks 56 | . 9 13 7 19 5 3 . . Record 8 | . . . . . 5 3 . . Part Schematic 1 | . . 1 . . . . . . Robot Analysis 8 | . 4 2 1 1 . . . . Prototype ID Bank 5 | . 2 1 . 2 . . . . Branch Access Points 2 | . . 1 . 1 . . . . Emergency Access Points 4 | . . 2 . 2 . . . . Terminal Index 1 | . . 1 . . . . . . Recycling Unit Index 1 | . . . . 1 . . . . Alert Level 2 | . . . 1 1 . . . . Unreport Threat 5 | . . 2 2 1 . . . . Locate Traps 7 | . 2 . 1 4 . . . . Recall Investigation 2 | . . 1 . 1 . . . . Hauler Manifests 3 | . 1 . 1 1 . . . . Registered Components 1 | . . . . 1 . . . . Zone Layout 6 | . . 2 1 3 . . . . Fabricator Hacks 7 | . . . . 7 . . . . Network Status 1 | . . . . 1 . . . . Load Schematic 3 | . . . . 3 . . . . Build 3 | . . . . 3 . . . . Repair Station Hacks 2 | . . 2 . . . . . . Scan Component 1 | . . 1 . . . . . . Repair 1 | . . 1 . . . . . . Recycling Unit Hacks . | . . . . . . . . . Scanalyzer 20 | . . 7 3 10 . . . . Insert Component 10 | . . 3 2 5 . . . . Analyze 10 | . . 4 1 5 . . . . Garrison Access Hacks 2 | . . . 1 1 . . . . Seal Access 2 | . . . 1 1 . . . . Unauthorized Hacks 10 | . 1 4 . 5 . . . . Terminals 4 | . 1 2 . 1 . . . . Assimilate 1 | . . . . 1 . . . . Botnet 3 | . 1 2 . . . . . . Fabricators . | . . . . . . . . . Repair Stations . | . . . . . . . . . Recycling Units 6 | . . 2 . 4 . . . . Reject 3 | . . 1 . 2 . . . . Mask 3 | . . 1 . 2 . . . . Scanalyzers . | . . . . . . . . . Garrison Access . | . . . . . . . . . Data Cores Recovered . | . . . . . . . . . Used . | . . . . . . . . . Hacking Detections 43 | . 5 9 5 22 1 1 . . Full Trace Events 19 | . 2 6 2 8 . 1 . . Feedback Events . | . . . . . . . . . Feedback Blocked . | . . . . . . . . . Robot Schematics Acquired 4 | . . . . . . . 4 . Robots Built . | . . . . . . . . . Authchips . | . . . . . . . . . Time . | . . . . . . . . . Total Robot Build Rating . | . . . . . . . . . Part Schematics Acquired 24 | . . 4 1 5 . . 14 . Parts Built 3 | . . . . 3 . . . . Authchips . | . . . . . . . . . Time 187 | . . . . 187 . . . . Total Part Build Rating 8 | . . . . 8 . . . . Parts Repaired 1 | . . 1 . . . . . . Time 64 | . . 64 . . . . . . Parts Recycled . | . . . . . . . . . Recycled Matter . | . . . . . . . . . Retrieved Matter . | . . . . . . . . . Retrieved Components . | . . . . . . . . . Parts Scanalyzed 9 | . . 3 1 5 . . . . Part Schematics Acquired 9 | . . 3 1 5 . . . . Parts Damaged 3 | . . 2 . 1 . . . . Bothacking | -11 -10 -9 -8 -7 -7 -7 -7 -7 ------------ Run | Yrd Mat Mat Mat Fac Low Low Zio Dee Used RIF Installer . | . . . . . . . . . Robots Hacked 7 | . . . . . . 3 4 . Non-combat 4 | . . . . . . 3 1 . Combat 3 | . . . . . . . 3 . Robot Hacks Applied 7 | . . . . . . 3 4 . parse_system 7 | . . . . . . 3 4 . Relay Couplers Released . | . . . . . . . . . Fabnet Peak Effective % . | . . . . . . . . . Robots Rewired . | . . . . . . . . . Allies Hacked . | . . . . . . . . . Hacks Repelled . | . . . . . . . . . Allies | -11 -10 -9 -8 -7 -7 -7 -7 -7 -------- Run | Yrd Mat Mat Mat Fac Low Low Zio Dee Total Allies 4 | . . . . 4 . . . . Largest Group 3 | . . . . 3 . . . . Highest-Rated Group 93 | . . . . 93 . . . . Highest-Rated Ally 31 | . . . . 31 . . . . Total Orders . | . . . . . . . . . Ally Attacks 34 | . . . . 34 . . . . Total Damage 508 | . . . . 508 . . . . Kills 4 | . . . . 4 . . . . Allies Corrupted . | . . . . . . . . . Allies Melted . | . . . . . . . . . Intel | -11 -10 -9 -8 -7 -7 -7 -7 -7 ------- Run | Yrd Mat Mat Mat Fac Low Low Zio Dee Robot Analysis Total 8 | . 4 2 1 1 . . . . Derelict Logs Recovered 6 | . . . . . 3 1 2 . Drone Launches . | . . . . . . . . . Drone Recoveries . | . . . . . . . . . Exploration | -11 -10 -9 -8 -7 -7 -7 -7 -7 ------------- Run | Yrd Mat Mat Mat Fac Low Low Zio Dee Turns Passed 11975 | 225 2074 3739 2490 2526 361 210 285 65 Spaces Moved 11941 | 135 793 923 754 6403 968 684 1032 249 Core 8 | 2 . . . . 6 . . . Treads 1238 | . 48 436 754 . . . . . Legs . | . . . . . . . . . Wheels 1365 | 133 745 487 . . . . . . Hover . | . . . . . . . . . Flight 9330 | . . . . 6403 962 684 1032 249 Fastest Speed 5 | 50 100 160 240 11 5 23 23 5 Average Speed 77 | 99 232 330 247 26 24 23 23 21 Slowest Speed 720 | 100 400 720 320 448 400 23 23 26 Overloaded Moves 117 | . . . . 35 47 . . 35 Propulsion Burnouts . | . . . . . . . . . Robots Hopped 37 | . . . . 37 . . . . Cave-ins Triggered . | . . . . . . . . . Exploration Rate (%) 69 | 6 84 73 77 89 95 64 90 50 Regions Visited 8 Branch Regions 4 Pre-discovered Areas 1 | . . . . . . . 1 . Known Exits Taken 4 | . . . . 1 1 1 1 . Unknown Exits Taken 4 | 1 1 1 1 . . . . . Scrap Searched 12 | . . . . . 7 1 4 . Spaces Dug 80 | . . 1 1 78 . . . . Terrain Destroyed 242 | . . 52 50 89 51 . . . Melee 54 | . . 1 1 52 . . . . Projectile 4 | . . . 3 . 1 . . . AOE 184 | . . 51 46 37 50 . . . Terrain Rammed . | . . . . . . . . . Walls Destroyed . | . . . . . . . . . Machines Disabled . | . . . . . . . . . Actions | -11 -10 -9 -8 -7 -7 -7 -7 -7 --------- Run | Yrd Mat Mat Mat Fac Low Low Zio Dee Total 13696 | 180 911 1341 1081 7036 1079 731 1077 260 Wait 632 | . 8 119 25 362 70 19 28 1 Move 11860 | 134 792 922 753 6329 967 683 1031 249 Hop 36 | . . . . 36 . . . . Pick Up 160 | 12 26 47 33 26 9 6 1 . Fast Attach 38 | 1 1 4 10 14 . 1 5 2 Attach 67 | 7 4 14 11 22 6 2 . 1 Detach 14 | . . 2 1 9 . 1 . 1 Swap 115 | . 5 33 28 36 7 5 1 . Drop 168 | 1 6 42 39 59 10 4 5 2 Fire 422 | 25 69 146 152 20 10 . . . Melee 132 | . . 12 2 105 . 7 6 . Ram . | . . . . . . . . . Kick . | . . . . . . . . . Crush 1 | . . . 1 . . . . . Escape Stasis 18 | . . . . 18 . . . . Rewire . | . . . . . . . . . Trap 33 | . . . 26 . . 3 . 4 Miscellaneous . | . . . . . . . . . Route ------- -11/Scrapyard -10/Materials (discovered 3 exits: *Mat x2 / [*Min]) -9/Materials (discovered 4 exits: *Mat x2 / *Min x2) -8/Materials (discovered 3 exits: *Fac / [*Sto x2]) -7/Factory (discovered 5 exits: *Fac x3 / *Low x2) -7/Lower Caves -7/Lower Caves (discovered 2 exits: *Fac / *Zio) -7/Zion (discovered 2 exits: *Dee / [*Pro]) -7/Deep Caves History --------- Turn | Location | Event 10 | -11/Scrapyard | Discovered new exit (range 15) 226 | -11/Scrapyard | Entered Materials 489 | -10/Materials | Discovered new exit (range 9) 590 | -10/Materials | Build established: Hauler-Mutant 841 | -10/Materials | Discovered new exit (range 12) 1038 | -10/Materials | Discovered new exit (range 4) 1149 | -10/Materials | Core integrity fell below 50% 1177 | -10/Materials | Core integrity fell below 20% 1971 | -10/Materials | Central database locked down 2300 | -10/Materials | Entered another Materials area 2300 | -9/Materials | Evolved 2 slots: Utility x2 3013 | -9/Materials | Discovered new exit (range 15) 3832 | -9/Materials | Core integrity fell below 50% 4050 | -9/Materials | Discovered new exit (range 15) 4409 | -9/Materials | Discovered new exit (range 9) 4700 | -9/Materials | First assault squad dispatched 5040 | -9/Materials | Repaired Broken Imp. Flight Unit 5322 | -9/Materials | Identified exit to Mines 5688 | -9/Materials | Discovered new exit (range 7) 5718 | -9/Materials | Core integrity fell below 20% 5739 | -9/Materials | Sterilization system engaged 5739 | -9/Materials | Non-combat units ordered to evacuate 5839 | -9/Materials | Combat units ordered to evacuate 6039 | -9/Materials | Ambient heat levels rising (+10) 6039 | -9/Materials | Entered another Materials area 6039 | -8/Materials | Evolved 2 slots: Propulsion x2 6146 | -8/Materials | Discovered new exit (range 6) 6499 | -8/Materials | Garrison activated, responded to threat 6571 | -8/Materials | Destroyed 7 combat bots 6723 | -8/Materials | Destroyed 14 combat bots 7115 | -8/Materials | Discovered new exit (range 12) 8439 | -8/Materials | First assault squad dispatched 8482 | -8/Materials | Discovered new exit (range 16) 8529 | -8/Materials | Entered Factory 8529 | -7/Factory | Evolved 2 slots: Propulsion x1, Utility x1 8838 | -7/Factory | Build established: Hacker-Sprinter 8929 | -7/Factory | Discovered new exit (range 17) 8929 | -7/Factory | Identified exit to Lower Caves 9077 | -7/Factory | Discovered new exit (range 7) 9170 | -7/Factory | Fabricated ECM Suite (x1) 9363 | -7/Factory | Discovered new exit (range 17) 9678 | -7/Factory | Fabricated Hacking Suite (x1) 9683 | -7/Factory | Allied Derelicts emerged from ambush trap array 9724 | -7/Factory | Discovered new exit (range 19) 9728 | -7/Factory | Identified exit to Factory 9821 | -7/Factory | Build established: Scout 10919 | -7/Factory | Fabricated Cld. VTOL Module? 10929 | -7/Factory | Search patrols dispatched 11055 | -7/Factory | Entered Lower Caves 11056 | -7/Lower Caves | Spotted B-75 Beast 11068 | -7/Lower Caves | Learned location of 2 exits from Upper Caves 11068 | -7/Lower Caves | Learned Factory emergency access door positions 11068 | -7/Lower Caves | Learned Factory stockpile data 11068 | -7/Lower Caves | Learned Factory terminal intel 11068 | -7/Lower Caves | Learned Armory terminal intel 11072 | -7/Lower Caves | Attracted the attention of an 0b10 base 11079 | -7/Lower Caves | Learned Factory stockpile data 11079 | -7/Lower Caves | Learned location of 1 exit from Factory 11097 | -7/Lower Caves | Learned 4 Factory zone layouts 11157 | -7/Lower Caves | Encountered a Warlord checkpoint 11404 | -7/Lower Caves | Discovered new exit (range 6) 11407 | -7/Lower Caves | Identified exit to Lower Caves 11416 | -7/Lower Caves | Entered another Lower Caves area 11431 | -7/Lower Caves | Discovered exit to Factory (range 7) 11440 | -7/Lower Caves | Learned Factory terminal intel 11507 | -7/Lower Caves | Build established: Sprinter 11622 | -7/Lower Caves | Discovered new exit (range 13) 11624 | -7/Lower Caves | Identified exit to Zion 11626 | -7/Lower Caves | Entered Zion 11637 | -7/Zion | Given A8's code to call for help 11640 | -7/Zion | Given the Hacking Drone Bay 11640 | -7/Zion | Found Prototype Device 11640 | -7/Zion | Identified Hacking Drone Bay 11646 | -7/Zion | Discovered new exit (range 11) 11647 | -7/Zion | Acquired unknown access codes intercepted by a Zionite 11672 | -7/Zion | System corruption cleaned by Quarantine Array 11689 | -7/Zion | Found CR-A16's Pointy Stick 11702 | -7/Zion | Learned location of 1 exit from Factory 11750 | -7/Zion | Found Relay Coupler [Programmer] 11781 | -7/Zion | Learned Factory garrison access intel 11786 | -7/Zion | Opened final containment barrier to the Deep Caves 11871 | -7/Zion | Learned location of Warlord (-4) 11902 | -7/Zion | Discovered new exit (range 3) 11902 | -7/Zion | Saw the warning signs outside the Deep Caves entrance 11902 | -7/Zion | Identified exit to Deep Caves 11911 | -7/Zion | Entered Deep Caves 11954 | -7/Deep Caves | Attacked by Z-Imprinter 11959 | -7/Deep Caves | Z-Facility disabled 11960 | -7/Deep Caves | Core integrity fell below 50% 11963 | -7/Deep Caves | Found Prototype Protection 11963 | -7/Deep Caves | Identified Zio. Weapon Casing 11973 | -7/Deep Caves | Core integrity fell below 20% 11976 | -7/Deep Caves | Destroyed by TN-JY5(z) with Zionite Laser-S Last Messages --------------- 11958_ Imp. Light Armor Plating destroyed. 11959_ Cld. VTOL Module destroyed. 11959_ Z-Facility disabled. 11961_ Acquired Prototype Storage. 11961_ Identified Zio. Biocell. 11962_ Dropped Zio. Biocell. 11963_ Acquired Prototype Protection. 11963_ Identified Zio. Weapon Casing. 11966_ Dropped Fire Trap. 11967_ Installed Fire Trap. 11968_ Mic. Nuclear Core destroyed. 11969_ Adv. Visual Processing Unit destroyed. 11969_ Imp. Signal Interpreter destroyed. 11972_ Trap Extractor dropped Dirty Bomb Trap. 11972_ Installed Dirty Bomb Trap. 11973_ Trap Extractor dropped Dirty Bomb Trap. 11974_ Installed Dirty Bomb Trap. 11975_ Trap Extractor dropped Dirty Bomb Trap. 11975_ Installed Dirty Bomb Trap. Map ----- +----------------------------------------------------+ | | | | | | | | | | | | | | | | | | | | | | | | | | | | | | | | | | | | | | | ????????####??????###?????#??????????????????????? | | ????????# #????###;######;####??????????????????? | | ????????# =#?#### ##?????????????????? | | ????????# !### #????###??????????? | | #######?# ### ###### ##?????##### | | # # ### #; ## # #???### | | ## z ^ &^@ ##### | | z ^ | | z | | | | z z | | z""" """ | | """""""""""" z | | """""""""""""" z | | """""""""""""" | | """"""""""" | | """""""""""""" | | """""""""""""" | | """""?"""""""" | | """""?"""""""" | | """"""""" " " | | """"""""" | | """""""" | | """"""""" | | """"""""" | | """"""""""" | | """"""""""""" | | """""" | | """""" """ | | """""" """"" # | | """""" """"""" # | +----------------------------------------------------+ Best States ------------- Heat Dissipation 42 Energy Generation 18 Energy Capacity 310 Matter Stores 300 Matter Capacity 300 Sight Range 20 Robot Scan Range 15 Terrain Scan Range 16 Terrain Scan Density 10 ECM Strength 1 Armor Coverage 450 Resistance: TH 10 Propulsion Shielding 66 Weapon Shielding 100 Evasion (%) 65 Recoil Reduction 4 Offensive Hacking 30 Defensive Hacking 10 Trap Extractor Capacity 4 Item Schematics ----------------- Cargo Storage Unit | -9/Materials | Hacked Imp. Flight Unit | -9/Materials | Scanalyzed Hacking Suite | -9/Materials | Scanalyzed ECM Suite | -9/Materials | Scanalyzed Imp. Assault Rifle | -8/Materials | Scanalyzed Imp. Utility Shielding | -7/Factory | Scanalyzed System Shield | -7/Factory | Scanalyzed Cld. VTOL Module | -7/Factory | Scanalyzed Imp. Light Armor Plating | -7/Factory | Scanalyzed Plasma Cutter | -7/Factory | Scanalyzed Mak. Light Armor Plating | -7/Zion | Archive Hvy. Pick | -7/Zion | Archive Stasis Canceller | -7/Zion | Archive Arc Projector | -7/Zion | Archive Power Amplifier | -7/Zion | Archive Lightning Gun | -7/Zion | Archive Mapping Drone Bay | -7/Zion | Archive Imp. Transmission Jammer | -7/Zion | Archive Force Booster | -7/Zion | Archive 0b10 Decoder Chip [Looter] | -7/Zion | Archive Focal Shield | -7/Zion | Archive Core Analyzer | -7/Zion | Archive Spk. Medium Treads | -7/Zion | Archive Energy Filter | -7/Zion | Archive Robot Schematics ------------------ K-01 Serf | -7/Zion | Archive C-57 Dissector | -7/Zion | Archive L-41 Fighter | -7/Zion | Archive T-07 Excavator | -7/Zion | Archive Fabricated ------------ ECM Suite | x1 | -7/Factory Hacking Suite | x1 | -7/Factory Cld. VTOL Module | x1 | -7/Factory Alien Tech Used ----------------- None Achievements -------------- Signs Are For Wimps Challenges ------------ None Game ------ Seed LinkedHypercooledClaw Manual? 0 Play Time 03:07:07 Cumulative 87.9 hours Start 2024.05.23 @ 22:49:44 End 2024.05.24 @ 17:18:29 Sessions 9 Manual Loads 0 Difficulty Rogue Special Mode None Game No. 81 Rogue 76 Adventurer 5 Explorer 0 Win Type - Total 1 Types 1/0/0/0/0/0/0/0/0 Lore% 39 Gallery% 51 Achievement% 38 Wizard Run 0 Options --------- Layout 2 ASCII 0 Keyboard 0 Movement Mouse Keybinds 0 Fullscreen 2 Font 24/Smallcaps Map View 50x44 Zoom Use 0% Tactical HUD 1 Map Filters NONE Filters NONE Steam 1 RUN: 66d934bb-e7f8-437b-9ad5-11ac5a0de4ad